fUSD/lending_fUSD_20250616
["ID","MTS","AMOUNT","RATE_DAILY","PERIOD"]
[366076899,1750050684199,-5065.08,0.00016767,2]
[366076900,1750050684208,-490.0,0.00016767,2]
[366076901,1750050684217,-565.57,0.00016767,2]
[366076902,1750050684226,-2024.74,0.00016767,2]
[366076903,1750050684236,-2574.47,0.00016767,2]
[366076904,1750050684247,-490.0,0.00016767,2]
[366076905,1750050684256,-1271.2,0.00016767,2]
[366076906,1750050684267,-3936.07,0.00016767,2]
[366076907,1750050684276,-669.5,0.00016767,2]
[366076908,1750050684286,-1230.02,0.00016767,2]
[366076909,1750050684295,-490.0,0.00016767,2]
[366076910,1750050684306,-490.0,0.00016767,2]
[366076911,1750050684316,-490.0,0.00016767,2]
[366076912,1750050684325,-1180.9,0.00016767,2]
[366076913,1750050684336,-2535.07,0.00016767,2]
[366076914,1750050684346,-809.13,0.00016767,2]
[366076915,1750050684355,-490.0,0.00016767,2]
[366076916,1750050684365,-490.0,0.00016767,2]
[366076917,1750050684375,-1773.27,0.00016767,2]
[366076918,1750050684384,-490.0,0.00016767,2]
[366076919,1750050684394,-1700.58,0.00016767,2]
[366076920,1750050684404,-554.78,0.00016767,2]
[366076921,1750050684414,-1647.15,0.00016767,2]
[366076922,1750050684423,-564.96,0.00016767,2]
[366076923,1750050684435,-490.0,0.00016767,2]
[366076924,1750050684447,-1593.96,0.00016767,2]
[366076925,1750050684456,-534.05,0.00016767,2]
[366076926,1750050684467,-2448.75,0.00016767,2]
[366076927,1750050684477,-1117.73,0.00016767,2]
[366076928,1750050684487,-3106.22,0.00016767,2]
[366076929,1750050684498,-2727.13,0.00016767,2]
[366076930,1750050684507,-490.0,0.00016767,2]
[366076931,1750050684517,-631.5,0.00016767,2]
[366076932,1750050684528,-580.02,0.00016767,2]
[366076933,1750050684538,-1116.32,0.00016767,2]
[366076934,1750050684548,-1538.72,0.00016767,2]
[366076935,1750050684557,-1590.62,0.00016767,2]
[366076936,1750050684567,-4516.12,0.00016767,2]
[366076937,1750050684577,-3539.85,0.00016767,2]
[366076938,1750050684589,-490.0,0.00016767,2]
[366076939,1750050684598,-1307.61,0.00016767,2]
[366076940,1750050684608,-1095.05,0.00016767,2]
[366076941,1750050684619,-2759.97,0.00016767,2]
[366076942,1750050684630,-884.01,0.00016767,2]
[366076943,1750050684640,-635.26,0.00016767,2]
[366076944,1750050684650,-490.0,0.00016767,2]
[366076945,1750050684660,-490.0,0.00016767,2]
[366076946,1750050684670,-7364.67,0.00016767,2]
[366076947,1750050684681,-490.0,0.00016767,2]
[366076948,1750050684691,-490.0,0.00016767,2]
[366076949,1750050684702,-5076.36,0.00016767,2]
[366076950,1750050684711,-712.94,0.00016767,2]
[366076951,1750050684721,-1374.71,0.00016767,2]
[366076952,1750050684731,-490.0,0.00016767,2]
[366076953,1750050684741,-5164.05,0.00016767,2]
[366076954,1750050684752,-1565.78,0.00016767,2]
[366076955,1750050684762,-7477.45,0.00016767,2]
[366076956,1750050684772,-779.58,0.00016767,2]
[366076957,1750050684782,-1075.96,0.00016767,2]
[366076958,1750050684792,-2747.94,0.00016767,2]
[366076959,1750050684803,-1976.51,0.00016767,2]
[366076960,1750050684813,-490.0,0.00016767,2]
[366076961,1750050684823,-992.35,0.00016767,2]
[366076962,1750050684834,-1356.85,0.00016767,2]
[366076963,1750050684845,-3915.7,0.00016767,2]
[366076964,1750050684856,-521.49,0.00016767,2]
[366076965,1750050684866,-490.0,0.00016767,2]
[366076966,1750050684876,-490.0,0.00016767,2]
[366076967,1750050684886,-538.27,0.00016767,2]
[366076968,1750050684900,-600.63,0.00016767,2]
[366076969,1750050684910,-633.79,0.00016767,2]
[366076970,1750050684919,-699.01,0.00016767,2]
[366076971,1750050684929,-2370.49,0.00016767,2]
[366076972,1750050684940,-2631.75,0.00016767,2]
[366076973,1750050684950,-513.85,0.00016767,2]
[366076974,1750050684960,-6327.52,0.00016767,2]
[366076975,1750050684970,-11010.27,0.00016767,2]
[366076976,1750050684980,-490.0,0.00016767,2]
[366076977,1750050684989,-497.54,0.00016767,2]
[366076978,1750050684999,-490.0,0.00016767,2]
[366076979,1750050685008,-501.36,0.00016767,2]
[366076980,1750050685018,-4176.96,0.00016767,2]
[366076981,1750050685027,-2940.25,0.00016767,2]
[366076982,1750050685037,-490.0,0.00016767,2]
[366076983,1750050685046,-1116.02,0.00016767,2]
[366076984,1750050685056,-526.05,0.00016767,2]
[366076985,1750050685065,-1578.26,0.00016767,2]
[366076986,1750050685075,-490.0,0.00016767,2]
[366076987,1750050685087,-2097.37,0.00016767,2]
[366076988,1750050685096,-8874.58,0.00016767,2]
[366076989,1750050685107,-594.19553418,0.00016767,2]
[366076990,1750050685116,-654.33,0.00016767,2]
[366076991,1750050685126,-4869.12,0.00016767,2]
[366076992,1750050685136,-490.0,0.00016767,2]
[366076993,1750050685146,-2443.77,0.00016767,2]
[366076994,1750050685155,-490.0,0.00016767,2]
[366076995,1750050685164,-1722.32,0.00016767,2]
[366076996,1750050685173,-1232.89,0.00016767,2]
[366076997,1750050685183,-490.0,0.00016767,2]
[366076998,1750050685193,-2552.81,0.00016767,2]
[366076999,1750050685203,-1892.34,0.00016767,2]
[366077000,1750050685212,-919.94,0.00016767,2]
[366077001,1750050685221,-1396.73,0.00016767,2]
[366077002,1750050685231,-490.0,0.00016767,2]
[366077003,1750050685240,-2321.77,0.00016767,2]
[366077004,1750050685249,-1310.4,0.00016767,2]
[366077005,1750050685258,-919.08,0.00016767,2]
[366077006,1750050685267,-511.96,0.00016767,2]
[366077007,1750050685276,-1202.72,0.00016767,2]
[366077008,1750050685285,-1380.97,0.00016767,2]
[366077009,1750050685420,-2012.61,0.00016767,2]
[366077010,1750050685430,-490.0,0.00016767,2]
[366077011,1750050685439,-842.55,0.00016767,2]
[366077012,1750050685450,-901.05,0.00016767,2]
[366077013,1750050685460,-3092.59,0.00016767,2]
[366077014,1750050685470,-490.0,0.00016767,2]
[366077015,1750050685479,-2866.79,0.00016767,2]
[366077016,1750050685488,-490.0,0.00016767,2]
[366077017,1750050685497,-2068.1,0.00016767,2]
[366077018,1750050685506,-2595.64,0.00016767,2]
[366077019,1750050685516,-1418.22,0.00016767,2]
[366077020,1750050685525,-1017.75,0.00016767,2]
[366077021,1750050685535,-1331.84,0.00016767,2]
[366077022,1750050685545,-4069.9,0.00016767,2]
[366077023,1750050685556,-570.06,0.00016767,2]
[366077024,1750050685565,-1892.5,0.00016767,2]
[366077025,1750050685575,-490.0,0.00016767,2]
[366077026,1750050685586,-1438.24,0.00016767,2]
[366077027,1750050685595,-2066.04,0.00016767,2]
[366077028,1750050685606,-490.0,0.00016767,2]
[366077029,1750050685616,-1870.27,0.00016767,2]
[366077030,1750050685625,-1150.56,0.00016767,2]
[366077031,1750050685635,-490.0,0.00016767,2]
[366077032,1750050685645,-2533.91,0.00016767,2]
[366077033,1750050685655,-490.0,0.00016767,2]
[366077034,1750050685666,-891.04,0.00016767,2]
[366077035,1750050685676,-6442.14,0.00016767,2]
[366077036,1750050685687,-490.0,0.00016767,2]
[366077037,1750050685698,-627.79,0.00016767,2]
[366077038,1750050685708,-1052.5,0.00016767,2]
[366077039,1750050685718,-490.0,0.00016767,2]
[366077040,1750050685728,-10732.31,0.00016767,2]
[366077041,1750050685738,-1838.83,0.00016767,2]
[366077042,1750050685748,-490.0,0.00016767,2]
[366077043,1750050685758,-3601.56,0.00016767,2]
[366077044,1750050685767,-490.0,0.00016767,2]
[366077045,1750050685777,-566.99,0.00016767,2]
[366077046,1750050685788,-2074.41,0.00016767,2]
[366077047,1750050685799,-1927.17,0.00016767,2]
[366077048,1750050685809,-7701.94,0.00016767,2]
[366077049,1750050685820,-2224.66,0.00016767,2]
[366077050,1750050685829,-2598.83,0.00016767,2]
[366077051,1750050685840,-1085.14,0.00016767,2]
[366077052,1750050685850,-4177.12,0.00016767,2]
[366077053,1750050685860,-644.54,0.00016767,2]
[366077054,1750050685869,-1387.96,0.00016767,2]
[366077055,1750050685879,-12298.08,0.00016767,2]
[366077056,1750050685889,-1897.46,0.00016767,2]
[366077057,1750050685903,-1192.68,0.00016767,2]
[366077058,1750050685913,-1300.72,0.00016767,2]
[366077059,1750050685923,-1471.9,0.00016767,2]
[366077060,1750050685932,-490.0,0.00016767,2]
[366077061,1750050685943,-1372.67,0.00016767,2]
[366077062,1750050685953,-2253.89,0.00016767,2]
[366077063,1750050685963,-4998.12,0.00016767,2]
[366077064,1750050685975,-502.02,0.00016767,2]
[366077065,1750050685985,-1274.32,0.00016767,2]
[366077066,1750050685995,-490.0,0.00016767,2]
[366077067,1750050686005,-551.47,0.00016767,2]
[366077068,1750050686015,-3619.39,0.00016767,2]
[366077069,1750050686026,-7870.53,0.00016767,2]
[366077070,1750050686040,-1391.31,0.00016767,2]
[366077071,1750050686051,-490.0,0.00016767,2]
[366077072,1750050686061,-274.11030691,0.00016767,2]
[366077073,1750050686071,-3861.95,0.00016767,2]
[366077074,1750050686081,-490.0,0.00016767,2]
[366077075,1750050686092,-899.19,0.00016767,2]
[366077076,1750050686102,-898.72,0.00016767,2]
[366077077,1750050686112,-825.54,0.00016767,2]
[366077078,1750050686121,-5152.51,0.00016767,2]
[366077079,1750050686131,-699.91,0.00016767,2]
[366077080,1750050686141,-1489.38,0.00016767,2]
[366077081,1750050686151,-837.86,0.00016767,2]
[366077082,1750050686160,-490.0,0.00016767,2]
[366077083,1750050686170,-1112.46,0.00016767,2]
[366077084,1750050686180,-490.0,0.00016767,2]
[366077085,1750050686190,-490.0,0.00016767,2]
[366077086,1750050686200,-1627.94,0.00016767,2]
[366077087,1750050686209,-2062.4,0.00016767,2]
[366077088,1750050686219,-1530.87,0.00016767,2]
[366077089,1750050686229,-2165.0,0.00016767,2]
[366077090,1750050686239,-2866.15,0.00016767,2]
[366077091,1750050686248,-1064.04,0.00016767,2]
[366077092,1750050686258,-1602.19,0.00016767,2]
[366077093,1750050686268,-981.39,0.00016767,2]
[366077094,1750050686277,-1015.34,0.00016767,2]
[366077095,1750050686287,-2815.08,0.00016767,2]
[366077096,1750050686297,-4830.77,0.00016767,2]
[366077097,1750050686307,-1181.05,0.00016767,2]
[366077098,1750050686540,-490.0,0.00016767,2]
[366077099,1750050686552,-1484.94,0.00016767,2]
[366077100,1750050686563,-908.96,0.00016767,2]
[366077101,1750050686572,-1520.19,0.00016767,2]
[366077102,1750050686582,-4343.41,0.00016767,2]
[366077103,1750050686592,-4518.67,0.00016767,2]
[366077104,1750050686603,-19828.6,0.00016767,2]
[366077105,1750050686613,-2453.03,0.00016767,2]
[366077106,1750050686623,-1444.72,0.00016767,2]
[366077107,1750050686633,-490.0,0.00016767,2]
[366077108,1750050686643,-988.1,0.00016767,2]
[366077109,1750050686653,-1615.21,0.00016767,2]
[366077110,1750050686663,-490.0,0.00016767,2]
[366077111,1750050686673,-22668.47,0.00016767,2]
[366077112,1750050686683,-490.0,0.00016767,2]
[366077113,1750050686692,-1017.54,0.00016767,2]
[366077114,1750050686702,-1063.85,0.00016767,2]
[366077115,1750050686711,-1744.4,0.00016767,2]
[366077116,1750050686721,-1326.57,0.00016767,2]
[366077117,1750050686731,-490.0,0.00016767,2]
[366077118,1750050686740,-5188.61,0.00016767,2]
[366077119,1750050686750,-556.46,0.00016767,2]
[366077120,1750050686760,-490.0,0.00016767,2]
[366077121,1750050686770,-1845.42,0.00016767,2]
[366077122,1750050686780,-1112.8,0.00016767,2]
[366077123,1750050686790,-4375.9,0.00016767,2]
[366077124,1750050686800,-200.0,0.00016768,2]
[366077125,1750050686810,-200.0,0.00016768,2]
[366077126,1750050686819,-200.0,0.00016768,2]
[366077127,1750050686830,-200.0,0.00016768,2]
[366077128,1750050686840,-500.0,0.0001677,2]
[366077129,1750050686852,-1000.0,0.0001677,2]
[366077130,1750050686862,-1902.24112601,0.0001677,2]
[366077131,1750050686873,-285.02654342,0.00016772,2]
[366077132,1750050686883,-1497.05063342,0.00016774,2]
[366077133,1750050686895,-722.50900822,0.00016775,2]
[366077134,1750050686908,-5404.72438249,0.00016775,2]
[366077135,1750050686918,-614.01624509,0.00016775,2]
[366077136,1750050686928,-558.11412565,0.00016778,2]
[366077137,1750050686940,-200.0,0.00016778,2]
[366077138,1750050686950,-1497.05063342,0.00016778,2]
[366077139,1750050686960,-286.93633182,0.0001678,2]
[366077140,1750050686972,-285.02654342,0.00016781,2]
[366077141,1750050686982,-281.613636,0.00016783,2]
[366077142,1750050686999,-281.613636,0.00016783,2]
[366077143,1750050687009,-200.0,0.00016784,2]
[366077144,1750050687020,-558.11412565,0.00016787,2]
[366077145,1750050687030,-286.93633182,0.00016788,2]
[366077146,1750050687041,-200.0,0.0001679,2]
[366077147,1750050687051,-200.0,0.0001679,2]
[366077148,1750050687061,-286.93633182,0.00016791,2]
[366077149,1750050687071,-200.0,0.00016791,2]
[366077150,1750050687080,-200.0,0.00016793,2]
[366077151,1750050687091,-558.11412565,0.00016793,2]
[366077152,1750050687100,-734.10005602,0.00016794,2]
[366077153,1750050687110,-200.0,0.00016794,2]
[366077154,1750050687120,-558.11412565,0.00016794,2]
[366077155,1750050687130,-5602.62034827,0.00016797,2]
[366077156,1750050687139,-1902.24112601,0.00016797,2]
[366077157,1750050687149,-1902.24112601,0.00016798,2]
[366077158,1750050687158,-3417.65,0.000168,2]
[366077159,1750050687168,-500.0,0.000168,2]
[366077160,1750050687178,-15001.13,0.000168,2]
[366077161,1750050687188,-2504.16,0.000168,2]
[366077162,1750050687198,-1560.41517649,0.000168,7]
[366077163,1750050687207,-4048.38111004,0.000168,3]
[366077164,1750050687217,-1000.0,0.000168,2]
[366077165,1750050687227,-1005.0,0.000168,6]
[366077166,1750050687236,-3982.02681532,0.000168,2]
[366077167,1750050687246,-734.10005602,0.00016801,2]
[366077168,1750050687255,-558.11412565,0.00016801,2]
[366077169,1750050687265,-6056.52755486,0.00016801,2]
[366077170,1750050687275,-200.0,0.00016802,2]
[366077171,1750050687284,-1902.24112601,0.00016802,2]
[366077172,1750050687295,-285.02654342,0.00016802,2]
[366077173,1750050687305,-200.0,0.00016802,2]
[366077174,1750050687315,-722.50900822,0.00016803,2]
[366077175,1750050687324,-6056.52755486,0.00016804,2]
[366077176,1750050687334,-200.0,0.00016805,2]
[366077177,1750050687344,-722.50900822,0.00016807,2]
[366077178,1750050687354,-286.93633182,0.00016808,2]
[366077179,1750050687364,-5404.72438249,0.00016809,2]
[366077180,1750050687373,-288.64317249,0.00016809,2]
[366077181,1750050687383,-288.64317249,0.00016811,2]
[366077182,1750050687394,-200.0,0.00016811,2]
[366077183,1750050687404,-722.50900822,0.00016811,2]
[366077184,1750050687414,-5404.72438249,0.00016814,2]
[366077185,1750050687423,-5404.72438249,0.00016818,2]
[366077186,1750050687440,-1902.24112601,0.00016819,2]
[366077187,1750050687450,-1497.05063342,0.00016821,2]
[366077188,1750050687460,-1497.05063342,0.00016821,2]
[366077189,1750050687470,-288.64317249,0.00016822,2]
[366077190,1750050687480,-722.50900822,0.00016822,2]
[366077191,1750050687490,-285.02654342,0.00016823,2]
[366077192,1750050687500,-195.0,0.00016823,2]
[366077193,1750050687510,-288.64317249,0.00016824,2]
[366077194,1750050687519,-200.0,0.00016824,2]
[366077195,1750050687529,-200.0,0.00016825,2]
[366077196,1750050687539,-1902.24112601,0.00016825,2]
[366077197,1750050687550,-200.0,0.00016826,2]
[366077198,1750050687560,-286.93633182,0.00016826,2]
[366077199,1750050687571,-200.0,0.00016826,2]
[366077200,1750050687580,-286.93633182,0.00016827,2]
[366077201,1750050687591,-200.0,0.00016829,2]
[366077202,1750050687601,-311.7455074,0.0001683,2]
[366077203,1750050687612,-285.02654342,0.00016831,2]
[366077204,1750050687623,-1242.57684771,0.00016831,2]
[366077205,1750050687633,-614.01624509,0.00016831,2]
[366077206,1750050687643,-5602.62034827,0.00016831,2]
[366077207,1750050687652,-286.93633182,0.00016832,2]
[366077208,1750050687662,-288.64317249,0.00016834,2]
[366077209,1750050687672,-734.10005602,0.00016835,2]
[366077210,1750050687682,-200.0,0.00016835,2]
[366077211,1750050687692,-6056.52755486,0.0001684,2]
[366077212,1750050687702,-1497.05063342,0.00016841,2]
[366077213,1750050687711,-200.0,0.00016841,2]
[366077214,1750050687721,-288.64317249,0.00016843,2]
[366077215,1750050687730,-734.10005602,0.00016846,2]
[366077216,1750050687740,-285.02654342,0.00016847,2]
[366077217,1750050687750,-200.0,0.00016849,2]
[366077218,1750050687759,-6056.52755486,0.0001685,2]
[366077219,1750050687769,-1902.24112601,0.00016853,2]
[366077220,1750050687779,-286.93633182,0.00016853,2]
[366077221,1750050687789,-5404.72438249,0.00016855,2]
[366077222,1750050687799,-722.50900822,0.00016856,2]
[366077223,1750050687809,-722.50900822,0.00016856,2]
[366077224,1750050687820,-558.11412565,0.00016857,2]
[366077225,1750050687830,-200.0,0.00016857,2]
[366077226,1750050687840,-1497.05063342,0.0001686,2]
[366077227,1750050687850,-6056.52755486,0.0001686,2]
[366077228,1750050687860,-6056.52755486,0.00016862,2]
[366077229,1750050687870,-288.64317249,0.00016865,2]
[366077230,1750050687885,-200.0,0.00016865,2]
[366077231,1750050687898,-5602.62034827,0.00016866,2]
[366077232,1750050687908,-1497.05063342,0.00016867,2]
[366077233,1750050687918,-734.10005602,0.00016869,2]
[366077234,1750050687927,-734.10005602,0.00016869,2]
[366077235,1750050687938,-153.39334,0.0001687,2]
[366077236,1750050687948,-288.64317249,0.00016873,2]
[366077237,1750050687958,-6056.52755486,0.00016874,2]
[366077238,1750050687968,-195.0,0.00016875,2]
[366077239,1750050687980,-200.0,0.00016878,2]
[366077240,1750050687991,-558.11412565,0.00016879,2]
[366077241,1750050688000,-200.0,0.00016881,2]
[366077242,1750050688010,-1902.24112601,0.00016881,2]
[366077243,1750050688020,-1497.05063342,0.00016881,2]
[366077244,1750050688030,-722.50900822,0.00016882,2]
[366077245,1750050688040,-734.10005602,0.00016882,2]
[366077246,1750050688050,-5800.0,0.00016883,2]
[366077247,1750050688060,-734.10005602,0.00016888,2]
[366077248,1750050688070,-500.45,0.00016888,2]
[366077249,1750050688080,-500.0,0.00016888,2]
[366077250,1750050688091,-6056.52755486,0.00016891,2]
[366077251,1750050688101,-5800.0,0.00016891,2]
[366077252,1750050688112,-5404.72438249,0.00016892,2]
[366077253,1750050688121,-200.0,0.00016895,2]
[366077254,1750050688132,-285.02654342,0.00016895,2]
[366077255,1750050688142,-5404.72438249,0.00016895,2]
[366077256,1750050688153,-558.11412565,0.00016896,2]
[366077257,1750050688163,-500.0,0.00016899,2]
[366077258,1750050688173,-501.88,0.00016899,2]
[366077259,1750050688183,-200.0,0.00016899,2]
[366077260,1750050688193,-7868.32825784,0.000169,2]
[366077261,1750050688203,-888.90001413,0.000169,2]
[366077262,1750050688213,-5800.0,0.000169,2]
[366077263,1750050688223,-10356.91110387,0.000169,2]
[366077264,1750050688233,-5800.0,0.000169,2]
[366077265,1750050688243,-3982.02681532,0.000169,2]
[366077266,1750050688253,-5602.62034827,0.000169,2]
[366077267,1750050688264,-155.45440737,0.000169,2]
[366077268,1750050688274,-158.501302,0.00016918,2]
[366077269,1750050688284,-151.0,0.00016918,2]
[366077270,1750050688294,-500.0,0.0001693,2]
[366077271,1750050688304,-500.0,0.0001693,2]
[366077272,1750050688314,-183.58112232,0.0001693,2]
[366077273,1750050688324,-501.88,0.0001693,2]
[366077274,1750050688334,-501.88,0.0001693,2]
[366077275,1750050688345,-501.88,0.0001693,2]
[366077276,1750050688355,-501.88,0.0001693,2]
[366077277,1750050688365,-501.88,0.0001693,2]
[366077278,1750050688376,-502.03659919,0.0001693,2]
[366077279,1750050688386,-300.0,0.0001693,2]
[366077280,1750050688395,-233.297641,0.00016931,2]
[366077281,1750050688406,-151.0,0.00016931,2]
[366077282,1750050688416,-281.613636,0.00016931,2]
[366077283,1750050688426,-281.613636,0.00016931,2]
[366077284,1750050688436,-281.613636,0.00016931,2]
[366077285,1750050688446,-281.613626,0.00016931,2]
[366077286,1750050688455,-490.0,0.00016931,2]
[366077287,1750050688465,-490.0,0.00016931,2]
[366077288,1750050688475,-490.0,0.00016931,2]
[366077289,1750050688486,-2859.047734,0.00016931,2]
[366077290,1750050688496,-490.0,0.00016931,2]
[366077291,1750050688506,-3903.138748,0.00016931,2]
[366077292,1750050688516,-490.0,0.00016931,2]
[366077293,1750050688526,-490.0,0.00016931,2]
[366077294,1750050688536,-500.11,0.00016931,2]
[366077295,1750050688546,-843.9,0.00016931,2]
[366077296,1750050688556,-490.0,0.00016931,2]
[366077297,1750050688566,-1053.3,0.00016931,2]
[366077298,1750050688576,-490.0,0.00016931,2]
[366077299,1750050688588,-835.97,0.00016931,2]
[366077300,1750050688598,-490.0,0.00016931,2]
[366077301,1750050688607,-1458.0,0.00016931,2]
[366077302,1750050688617,-1131.26,0.00016931,2]
[366077303,1750050688626,-746.25,0.00016931,2]
[366077304,1750050688638,-490.0,0.00016931,2]
[366077305,1750050688648,-490.0,0.00016931,2]
[366077306,1750050688657,-490.0,0.00016931,2]
[366077307,1750050688667,-490.0,0.00016931,2]
[366077308,1750050688677,-569.13,0.00016931,2]
[366077309,1750050688686,-1654.12,0.00016931,2]
[366077310,1750050688696,-490.0,0.00016931,2]
[366077311,1750050688706,-539.82,0.00016931,2]
[366077312,1750050688715,-490.0,0.00016931,2]
[366077313,1750050688726,-490.0,0.00016931,2]
[366077314,1750050688736,-490.0,0.00016931,2]
[366077315,1750050688746,-490.0,0.00016931,2]
[366077316,1750050688756,-501.88,0.00016931,2]
[366077317,1750050688766,-686.6,0.00016931,2]
[366077318,1750050688776,-599.31,0.00016931,2]
[366077319,1750050688786,-490.0,0.00016931,2]
[366077320,1750050688797,-490.0,0.00016931,2]
[366077321,1750050688807,-767.4,0.00016931,2]
[366077322,1750050688816,-490.0,0.00016931,2]
[366077323,1750050688826,-490.0,0.00016931,2]
[366077324,1750050688836,-490.0,0.00016931,2]
[366077325,1750050688846,-1955.09,0.00016931,2]
[366077326,1750050688855,-490.0,0.00016931,2]
[366077327,1750050688865,-490.0,0.00016931,2]
[366077328,1750050688875,-490.0,0.00016931,2]
[366077329,1750050688885,-490.0,0.00016931,2]
[366077330,1750050688898,-490.0,0.00016931,2]
[366077331,1750050688908,-966.75,0.00016931,2]
[366077332,1750050688918,-704.58,0.00016931,2]
[366077333,1750050688928,-541.69,0.00016931,2]
[366077334,1750050688939,-653.36,0.00016931,2]
[366077335,1750050688948,-490.0,0.00016931,2]
[366077336,1750050688958,-522.5,0.00016931,2]
[366077337,1750050688968,-595.85,0.00016931,2]
[366077338,1750050688978,-914.3,0.00016931,2]
[366077339,1750050688988,-738.47,0.00016931,2]
[366077340,1750050688998,-889.43,0.00016931,2]
[366077341,1750050689007,-490.0,0.00016931,2]
[366077342,1750050689017,-636.34,0.00016931,2]
[366077343,1750050689026,-490.0,0.00016931,2]
[366077344,1750050689035,-490.0,0.00016931,2]
[366077345,1750050689045,-490.0,0.00016931,2]
[366077346,1750050689055,-490.0,0.00016931,2]
[366077347,1750050689064,-617.06,0.00016931,2]
[366077348,1750050689073,-490.0,0.00016931,2]
[366077349,1750050689083,-490.0,0.00016931,2]
[366077350,1750050689093,-490.0,0.00016931,2]
[366077351,1750050689104,-490.0,0.00016931,2]
[366077352,1750050689115,-1419.67,0.00016931,2]
[366077353,1750050689126,-601.37,0.00016931,2]
[366077354,1750050689135,-490.0,0.00016931,2]
[366077355,1750050689144,-1158.76,0.00016931,2]
[366077356,1750050689154,-490.0,0.00016931,2]
[366077357,1750050689165,-300.0,0.00016931,2]
[366077358,1750050689176,-490.0,0.00016931,2]
[366077359,1750050689185,-490.0,0.00016931,2]
[366077360,1750050689195,-490.0,0.00016931,2]
[366077361,1750050689205,-490.0,0.00016931,2]
[366077362,1750050689215,-1825.39,0.00016931,2]
[366077363,1750050689227,-648.6,0.00016931,2]
[366077364,1750050689238,-695.71,0.00016931,2]
[366077365,1750050689248,-490.0,0.00016931,2]
[366077366,1750050689259,-789.97,0.00016931,2]
[366077367,1750050689269,-490.0,0.00016931,2]
[366077368,1750050689278,-686.87,0.00016931,2]
[366077369,1750050689288,-957.42,0.00016931,2]
[366077370,1750050689298,-500.4,0.00016931,2]
[366077371,1750050689307,-490.0,0.00016931,2]
[366077372,1750050689317,-501.94,0.00016931,2]
[366077373,1750050689326,-754.6,0.00016931,2]
[366077374,1750050689335,-490.0,0.00016931,2]
[366077375,1750050689345,-490.0,0.00016931,2]
[366077376,1750050689355,-495.71,0.00016931,2]
[366077377,1750050689365,-523.57,0.00016931,2]
[366077378,1750050689377,-1478.94,0.00016931,2]
[366077379,1750050689388,-641.76,0.00016931,2]
[366077380,1750050689400,-490.0,0.00016931,2]
[366077381,1750050689409,-490.0,0.00016931,2]
[366077382,1750050689421,-490.0,0.00016931,2]
[366077383,1750050689431,-490.0,0.00016931,2]
[366077384,1750050689441,-1218.75,0.00016931,2]
[366077385,1750050689451,-490.0,0.00016931,2]
[366077386,1750050689460,-678.97,0.00016931,2]
[366077387,1750050689470,-1280.96,0.00016931,2]
[366077388,1750050689479,-1902.69,0.00016931,2]
[366077389,1750050689489,-860.04,0.00016931,2]
[366077390,1750050689498,-490.0,0.00016931,2]
[366077391,1750050689508,-490.0,0.00016931,2]
[366077392,1750050689517,-614.87,0.00016931,2]
[366077393,1750050689526,-297.08,0.00016931,2]
[366077394,1750050689535,-490.0,0.00016931,2]
[366077395,1750050689546,-490.0,0.00016931,2]
[366077396,1750050689555,-490.0,0.00016931,2]
[366077397,1750050689565,-1750.53,0.00016931,2]
[366077398,1750050689575,-490.0,0.00016931,2]